bitfinex-derivatives/quotes_ETHF0:USTF0_20251116
["timestamp","ask_amount","ask_price","bid_price","bid_amount"]
[1763255508144,1.57649748,3154.4,3154.1,3.4399]
[1763255508334,1.57649748,3154.4,3154.3,0.2321]
[1763255508535,4.34741329,3154.6,3154.4,0.2321]
[1763255508536,1.57649748,3154.5,3154.4,0.2321]
[1763255509341,0.00234768,3154.6,3154.5,0.2321]
[1763255509842,0.00234768,3154.6,3154.5,0.3701]
[1763255510041,0.73212927,3154.6,3154.5,0.2321]
[1763255510432,0.00234768,3154.6,3154.5,0.2321]
[1763255511246,0.00234768,3154.6,3154.5,0.3701]
[1763255511643,0.73212927,3154.6,3154.5,0.3701]
[1763255511838,0.00234768,3154.6,3154.5,0.3701]
[1763255512343,0.00234768,3154.6,3154.5,3.5779]
[1763255515636,0.8498852,3155.6,3154.5,3.3458]
[1763255515840,0.2435,3155.4,3155.3,3.2078]
[1763255516344,0.2435,3155.4,3154.9,3.2078]
[1763255516546,0.24742624,3155.4,3154.9,3.2078]
[1763255517246,0.00392624,3155.4,3155.3,3.2078]
[1763255523852,2.624e-05,3155.4,3155.3,3.2078]
[1763255524346,1.0002852,3156.5,3155.3,9.2078]
[1763255524550,0.1504,3157.0,3156.4,3.2078]
[1763255524747,0.2428,3156.9,3156.4,3.2078]
[1763255525053,0.1454,3156.5,3156.4,3.2078]
[1763255525244,0.1504,3157.0,3156.4,3.2078]
[1763255525444,0.15269675,3157.0,3156.4,3.21134546]
[1763255525745,0.3882,3156.5,3156.4,3.21134546]
[1763255526248,0.1454,3156.5,3156.4,3.21134546]
[1763255526953,0.3882,3156.5,3156.4,3.21134546]
[1763255528051,0.3882,3156.5,3156.4,0.00354546]
[1763255531755,0.1454,3156.5,3156.4,0.00354546]
[1763255532151,0.3882,3156.5,3156.4,0.00354546]
[1763255533360,0.1454,3156.5,3156.4,0.00354546]
[1763255533744,3.36049675,3157.0,3156.4,0.00354546]
[1763255534558,0.1461,3156.5,3156.4,0.00354546]
[1763255534759,0.374,3156.5,3156.4,0.00354546]
[1763255534950,0.1461,3156.5,3156.4,0.00354546]
[1763255535460,0.374,3156.5,3156.4,0.00354546]
[1763255542861,1.09679355,3156.5,3156.4,0.00354546]
[1763255546258,0.374,3156.5,3156.4,0.00354546]
[1763255551462,1.09679355,3156.5,3156.4,0.00354546]
[1763255551672,0.374,3156.5,3156.4,0.00354546]
[1763255552062,1.09679355,3156.5,3156.4,0.00354546]
[1763255552265,0.374,3156.5,3156.4,0.00354546]
[1763255553274,1.09679355,3156.5,3156.4,0.00354546]
[1763255554266,1.94667875,3156.5,3156.4,0.00354546]
[1763255554564,1.2238852,3156.5,3156.4,0.00354546]
[1763255554773,1.09679355,3156.5,3156.4,3.21134546]
[1763255555364,0.374,3156.5,3156.4,3.21134546]
[1763255557683,0.1461,3156.5,3156.4,3.21134546]
[1763255558273,0.72279355,3156.6,3156.4,3.21134546]
[1763255558473,0.72279355,3156.5,3156.4,3.21134546]
[1763255558866,0.72279355,3156.7,3156.4,3.21134546]
[1763255559075,0.72279355,3156.6,3156.4,3.21134546]
[1763255559271,0.72279355,3156.5,3156.4,3.21134546]
[1763255559574,0.1406,3156.5,3156.4,3.21134546]
[1763255560477,0.3859,3156.5,3156.4,3.21134546]
[1763255564277,0.3859,3156.5,3156.4,0.00354546]
[1763255564668,1.10869355,3156.5,3156.4,0.00354546]
[1763255564870,0.3859,3156.5,3156.4,0.00354546]
[1763255565368,0.1406,3156.5,3156.4,3.21134546]
[1763255565770,0.3859,3156.5,3156.4,3.21134546]
[1763255566273,0.1406,3156.5,3156.4,3.21134546]
[1763255569573,0.3859,3156.5,3156.4,3.21134546]
[1763255569782,0.1406,3156.5,3156.4,3.21134546]
[1763255569976,0.3859,3156.5,3156.4,3.21134546]
[1763255572882,0.3859,3156.5,3156.4,0.00354546]
[1763255579585,1.11208738,3156.5,3156.4,0.00354546]
[1763255580288,0.2388,3156.1,3156.0,3.2078]
[1763255581383,0.2388,3156.1,3156.0,3.21066504]
[1763255581585,0.96535005,3156.1,3156.0,0.00286504]
[1763255581787,1.09365062,3156.1,3156.0,0.00286504]
[1763255582095,0.96535005,3156.1,3156.0,0.00286504]
[1763255582303,0.2388,3155.7,3155.6,3.21255745]
[1763255582686,0.2388,3155.7,3155.0,1.70361973]
[1763255582687,0.1376,3155.5,3155.2,3.2078]
[1763255582887,0.2388,3155.3,3155.2,3.2078]
[1763255583393,0.2388,3155.3,3155.2,0.0026945]
[1763255585591,0.3764,3155.5,3155.2,0.0026945]
[1763255585792,0.1376,3155.5,3155.2,0.0026945]
[1763255585994,0.3764,3155.5,3155.2,0.0026945]
[1763255586186,0.2388,3155.3,3155.2,0.0026945]
[1763255587498,0.1376,3155.5,3155.2,0.0026945]
[1763255587799,0.3764,3155.5,3155.2,0.0026945]
[1763255587999,0.2388,3155.3,3155.2,0.0026945]
[1763255591501,0.1376,3155.5,3155.2,3.2104945]
[1763255593107,0.14235745,3156.0,3155.3,6.0]
[1763255593406,0.00475745,3156.0,3155.9,3.2078]
[1763255594210,0.38815745,3156.0,3155.9,3.2078]
[1763255594603,0.15455745,3156.0,3155.9,3.2078]
[1763255596608,0.00475745,3156.0,3155.9,3.2078]
[1763255597113,0.15455745,3156.0,3155.9,3.2078]
[1763255601014,0.38815745,3156.0,3155.9,3.2078]
[1763255603720,0.15455745,3156.0,3155.9,3.2078]
[1763255607921,0.00475745,3156.0,3155.9,3.2078]
[1763255608324,0.15225745,3156.0,3155.9,3.2078]
[1763255615319,0.00475745,3156.0,3155.9,3.2078]
[1763255618528,0.39345745,3156.0,3155.9,3.2078]
[1763255619629,0.15225745,3156.0,3155.9,3.2078]
[1763255621127,0.39345745,3156.0,3155.9,3.2078]
[1763255621422,0.39345745,3156.0,3155.9,4.91141973]
[1763255621819,0.39345745,3156.0,3155.9,3.2078]
[1763255622219,0.39345745,3156.0,3155.2,0.0026945]
[1763255622220,0.2412,3155.7,3155.6,1.70361973]
[1763255622930,0.2412,3155.6,3155.5,3.2078]
[1763255624424,1.73227056,3156.0,3155.5,3.2078]
[1763255624731,0.72569187,3155.9,3155.5,3.2078]
[1763255625029,0.96689187,3155.8,3155.5,3.2078]
[1763255625228,0.15225745,3156.0,3155.5,3.2078]
[1763255625932,0.2412,3155.6,3155.5,3.2078]
[1763255626433,0.15225745,3156.0,3155.5,3.2078]
[1763255626736,0.15225745,3156.0,3155.9,3.2078]
[1763255626922,0.87923119,3156.0,3155.9,3.2078]
[1763255627122,0.15225745,3156.0,3155.9,3.2078]
[1763255627823,0.00475745,3156.0,3155.9,3.2078]
[1763255629426,0.1406,3156.5,3155.9,4.91141973]
[1763255629832,0.3818,3156.5,3155.9,4.91141973]
[1763255630337,1.10850624,3156.5,3155.9,4.91141973]
[1763255630535,0.72670624,3156.4,3155.9,4.91141973]
[1763255630835,0.2412,3156.4,3155.9,4.91141973]
[1763255631129,0.3887,3156.0,3155.9,3.2078]
[1763255631522,0.1475,3156.0,3155.9,3.2078]
[1763255632837,0.3887,3156.0,3155.9,3.2078]
[1763255636639,0.2412,3155.6,3155.5,4.91141973]
[1763255637442,0.1475,3156.0,3155.5,4.91141973]
[1763255637940,0.1475,3156.0,3155.5,3.2078]
[1763255638440,0.1475,3156.0,3155.5,4.91141973]
[1763255638834,0.72677668,3156.1,3155.6,1.70361973]
[1763255640447,0.1487,3156.0,3155.6,1.70361973]
[1763255641042,0.72677668,3156.1,3155.6,1.70361973]
[1763255641241,0.3929,3156.5,3155.9,3.2078]
[1763255641544,1.11954243,3156.5,3155.9,3.2078]
[1763255642259,0.401,3156.0,3155.9,3.2078]
[1763255642654,0.1487,3156.0,3155.9,3.2078]
[1763255642960,0.401,3156.0,3155.9,3.2078]
[1763255643154,0.2523,3155.7,3155.5,4.91141973]
[1763255643359,0.2523,3155.6,3155.5,3.2078]
[1763255645557,0.1487,3156.0,3155.5,3.2078]
[1763255645750,0.2523,3155.6,3155.5,3.2078]
[1763255646057,0.401,3156.0,3155.5,3.2078]
[1763255646361,0.72664243,3156.1,3155.5,4.91141973]
[1763255646660,0.1406,3156.5,3156.0,3.2078]
[1763255646863,0.86720854,3156.5,3156.0,3.2078]
[1763255649361,0.2523,3156.1,3156.0,3.2078]
[1763255649966,0.86720854,3156.5,3156.0,3.2078]
[1763255650569,1.11950854,3156.5,3156.0,3.2078]
[1763255652061,0.3929,3156.5,3156.0,4.91141973]
[1763255662971,0.1406,3156.5,3156.0,4.91141973]
[1763255663273,0.3799,3156.5,3156.0,4.91141973]
[1763255665771,0.1406,3156.5,3156.0,4.91141973]
[1763255665970,4.45421223,3157.0,3156.1,1.70361973]
[1763255666172,0.7261437,3156.9,3156.4,3.2078]
[1763255668779,0.00229675,3157.0,3156.8,3.2078]
[1763255677790,0.14879675,3157.0,3156.8,3.2078]
[1763255677990,0.00229675,3157.0,3156.8,3.2078]
[1763255680192,0.14879675,3157.0,3156.8,3.2078]
[1763255681594,0.00229675,3157.0,3156.8,3.2078]
[1763255684289,0.14879675,3157.0,3156.8,3.2078]
[1763255685991,0.00229675,3157.0,3156.8,3.2078]
[1763255687094,0.14879675,3157.0,3156.8,3.2078]
[1763255688990,0.00229675,3157.0,3156.8,3.2078]
[1763255689297,0.1487,3158.0,3156.9,6.0]
[1763255689499,0.1487,3158.0,3157.9,3.2078]
[1763255690090,0.15107666,3158.0,3157.9,3.2102248]
[1763255697207,6.39057666,3158.0,3157.9,0.0024248]
[1763255697407,1.11502449,3158.0,3157.9,0.0024248]
[1763255697710,0.39057666,3158.0,3157.9,0.0024248]
[1763255702503,0.3857,3157.5,3157.4,3.2078]
[1763255702906,0.2362,3157.1,3157.0,3.2078]
[1763255703106,0.2362,3156.8,3156.7,1.69841447]
[1763255703310,0.2362,3156.8,3156.6,3.21255745]
[1763255703506,0.2362,3156.7,3156.6,3.21602881]
[1763255705107,0.2362,3156.7,3156.6,0.00822881]
[1763255705310,0.96042811,3156.7,3156.6,0.00822881]
[1763255705506,0.2362,3155.9,3155.8,3.2078]
[1763255706615,0.2362,3155.9,3155.8,3.21147771]
[1763255708308,0.2362,3155.9,3155.8,0.00367771]
[1763255709309,0.2362,3155.9,3155.8,0.24767771]
[1763255709714,0.2362,3155.9,3155.8,0.00367771]
[1763255710308,6.2362,3155.9,3155.5,0.00475745]
[1763255710512,3.444,3155.6,3155.5,0.00475745]
[1763255711313,3.444,3155.6,3155.0,3.2078]
[1763255711314,0.2362,3155.1,3155.0,3.2078]
[1763255711515,0.3857,3155.5,3155.4,0.244]
[1763255711710,0.2362,3155.5,3155.4,0.244]
[1763255712609,0.3857,3155.5,3155.4,0.244]
[1763255713716,0.2362,3155.2,3155.1,0.24875745]
[1763255714021,0.2362,3155.2,3155.1,0.00475745]
[1763255716016,3.444,3155.2,3155.1,0.00475745]
[1763255717515,9.444,3155.2,3155.1,0.00475745]
[1763255718311,13.29,3155.2,3155.1,0.00475745]
[1763255718510,7.29,3155.2,3155.1,0.00475745]
[1763255719218,4.0822,3155.2,3155.1,0.00475745]
[1763255719424,7.29,3155.2,3155.1,0.00475745]
[1763255720307,7.29,3155.2,3155.1,0.25405745]
[1763255720821,0.1495,3155.5,3155.1,0.25405745]
[1763255721117,0.00273828,3155.6,3155.5,0.3946]
[1763255724724,0.2403,3155.2,3155.1,0.25405745]
[1763255725418,0.00273828,3155.6,3155.5,0.3946]
[1763255725829,0.2403,3155.2,3155.1,0.25405745]
[1763255726229,3.4481,3155.2,3155.1,0.25405745]
[1763255726415,3.4481,3155.2,3155.1,0.00475745]
[1763255726916,0.2403,3155.2,3155.1,0.25405745]
[1763255727127,3.4481,3155.2,3155.1,0.00475745]
[1763255728529,3.4481,3155.2,3155.1,0.25405745]
[1763255730120,3.4481,3155.2,3155.1,0.00475745]
[1763255731522,3.4481,3155.2,3155.1,0.23915745]
[1763255731724,3.2078,3155.2,3155.1,0.23915745]
[1763255732729,3.21053828,3155.6,3155.5,0.3727]
[1763255734631,0.00273828,3155.6,3155.5,0.3727]
[1763255737335,0.00273828,3155.6,3155.5,6.3727]
[1763255738024,0.00273828,3155.6,3155.5,0.3727]
[1763255738241,0.00273828,3155.6,3155.5,6.3727]
[1763255740538,0.00273828,3155.6,3155.5,0.3727]
[1763255743137,0.23863828,3155.6,3155.5,0.3727]
[1763255743437,0.00273828,3155.6,3155.5,0.3727]
[1763255744236,0.3739,3155.5,3155.4,3.2078]
[1763255744430,0.3739,3155.5,3155.4,3.4422]
[1763255744734,0.2359,3155.5,3155.4,3.4422]
[1763255745237,0.3739,3155.5,3155.4,3.2078]
[1763255745737,0.2359,3155.2,3155.1,0.23915745]
[1763255745931,0.00273828,3155.6,3155.4,0.2344]
[1763255746138,0.2359,3155.2,3155.1,0.23915745]
[1763255746436,0.2359,3155.2,3155.1,0.00475745]
[1763255746636,0.2359,3155.2,3155.1,0.23915745]
[1763255747232,0.2359,3155.2,3155.1,0.00475745]
[1763255748741,6.2359,3155.2,3155.1,0.00475745]
[1763255748938,6.9602862,3155.2,3155.1,0.00475745]
[1763255749334,0.2359,3154.6,3154.5,3.2078]
[1763255749740,3.3458,3155.0,3154.5,3.4422]
[1763255749939,3.3458,3155.0,3154.5,3.5805]
[1763255750341,3.3458,3155.0,3154.5,3.58417582]
[1763255750743,0.2359,3154.6,3154.5,3.44587582]
[1763255751041,0.2359,3154.6,3154.5,0.00367582]
[1763255751745,3.4437,3154.6,3154.5,0.00367582]
[1763255752045,4.1685339,3154.6,3154.5,0.23807582]
[1763255752249,3.4437,3154.6,3154.5,0.23807582]
[1763255752443,3.4437,3154.6,3154.5,0.00367582]
[1763255753244,4.16842917,3154.6,3154.5,0.00367582]
[1763255753440,0.3739,3153.5,3153.2,3.2078]
[1763255753636,0.2359,3153.3,3153.2,3.4422]
[1763255753837,3.3458,3154.0,3153.2,3.4422]
[1763255754444,0.2359,3153.4,3153.3,0.00475745]
[1763255756835,0.2359,3152.8,3152.7,3.2078]
[1763255757035,0.1332,3153.0,3152.3,3.4422]
[1763255758052,0.2359,3152.4,3152.3,0.00757958]
[1763255760254,0.228,3151.6,3151.5,0.1383]
[1763255760445,0.228,3151.6,3151.0,3.3461]
[1763255760654,0.228,3151.1,3150.6,18.6528]
[1763255761140,0.228,3150.7,3150.2,3.4655029]
[1763255761341,0.228,3150.3,3150.2,3.46943372]
[1763255761754,0.228,3150.3,3150.2,3.21173082]
[1763255761957,3.4358,3150.3,3150.2,0.00393082]
[1763255762256,0.228,3149.7,3149.6,3.2078]
[1763255762449,0.228,3149.7,3149.1,3.2078]
[1763255762650,0.228,3149.2,3149.1,3.2078]
[1763255762847,3.2078,3149.8,3149.1,3.2078]
[1763255763055,0.138,3150.5,3149.7,3.4475]
[1763255763254,0.138,3150.5,3149.7,3.45140657]
[1763255763456,3.2078,3150.1,3150.0,0.2397]
[1763255763757,0.228,3149.8,3149.7,0.00390657]
[1763255764656,0.228,3149.8,3149.7,0.24360657]
[1763255766254,0.228,3149.8,3149.7,0.00390657]
[1763255766459,6.228,3149.8,3148.5,0.1438]
[1763255766659,3.2078,3149.1,3148.7,0.27145964]
[1763255766956,0.00475745,3149.2,3149.0,3.5913]
[1763255767158,0.00475745,3149.2,3149.1,0.2397]
[1763255767360,0.00475745,3149.2,3148.7,0.03175964]
[1763255767361,0.228,3148.8,3148.7,0.03175964]
[1763255767564,0.228,3148.8,3148.7,0.03542831]
[1763255768054,3.2078,3149.1,3148.7,0.27512831]
[1763255768861,0.228,3148.8,3148.7,0.27512831]
[1763255769058,3.2078,3149.1,3147.5,0.1438]
[1763255769059,0.228,3148.3,3147.5,0.1438]
[1763255769257,3.2078,3148.1,3147.5,0.1438]
[1763255769455,0.228,3147.4,3147.3,3.2078]
[1763255769649,0.228,3147.4,3146.9,3.2078]
[1763255769857,0.228,3147.1,3146.9,3.2078]
[1763255770157,0.00309938,3147.1,3147.0,0.2397]
[1763255770362,0.00309938,3147.1,3147.0,0.3835]
[1763255771669,0.00309938,3147.1,3147.0,6.3835]
[1763255771858,0.00476507,3147.5,3147.4,0.2397]
[1763255772358,0.00476507,3147.5,3147.0,0.1438]
[1763255772560,0.228,3147.0,3146.9,3.21128952]
[1763255772963,0.23203564,3147.0,3146.9,3.21128952]
[1763255773761,0.23203564,3147.0,3146.0,6.7296]
[1763255773962,0.00403564,3147.0,3146.5,3.3551]
[1763255774158,0.00403564,3147.0,3146.9,0.2292]
[1763255774365,0.00476507,3147.5,3147.4,0.2292]
[1763255774760,0.00476507,3147.5,3147.4,3.437]
[1763255775066,3.45346507,3147.5,3147.0,0.1473]
[1763255775266,3.45346507,3147.5,3147.0,0.15026453]
[1763255775267,3.45686613,3147.5,3147.0,0.15026453]
[1763255775773,0.00816613,3147.5,3147.4,0.2292]
[1763255776361,0.24906613,3147.5,3147.2,3.2078]
[1763255776767,0.00816613,3147.5,3147.4,0.2292]
[1763255777665,3.2078,3148.7,3148.6,0.2292]
[1763255777874,3.2078,3149.1,3148.6,0.2292]
[1763255778566,3.21104673,3149.1,3148.6,0.2292]
[1763255778871,0.2409,3148.6,3148.5,0.00476507]
[1763255779168,3.4487,3148.6,3148.5,0.00476507]
[1763255780163,3.2078,3148.6,3148.5,0.38126507]
[1763255780365,3.4487,3148.6,3148.5,0.00476507]
[1763255781266,3.2078,3148.6,3148.5,0.38126507]
[1763255781668,3.4487,3148.6,3148.5,0.00476507]
[1763255782265,3.2078,3148.6,3148.5,0.00476507]
[1763255782467,3.2078,3148.6,3148.5,0.38126507]
[1763255783261,3.21104673,3149.1,3148.5,0.38126507]
[1763255783470,3.21104673,3149.1,3149.0,0.3765]
[1763255784175,3.21104673,3149.1,3148.5,3.35986507]
[1763255788377,3.21104673,3149.1,3149.0,0.3672]
[1763255790781,3.44864673,3149.1,3148.5,3.35986507]
[1763255791182,0.2376,3148.6,3148.5,3.21256507]
[1763255792982,0.2376,3148.6,3148.5,0.00476507]
[1763255793569,0.96311112,3148.6,3148.5,0.00476507]
[1763255793774,0.2376,3148.6,3148.5,0.00476507]
[1763255793981,0.2376,3147.8,3147.7,3.2078]
[1763255795083,0.2376,3147.8,3147.3,3.2078]
[1763255795791,1.57787522,3147.9,3147.7,0.2439]
[1763255795991,0.72551112,3147.8,3147.7,0.2439]
[1763255796184,0.96311112,3147.8,3147.3,3.2078]
[1763255796386,0.72551112,3147.7,3147.3,3.2078]
[1763255796587,0.72551112,3147.6,3147.3,3.2078]
[1763255796787,0.8523641,3147.9,3147.3,3.2078]
[1763255796788,0.8523641,3147.9,3147.8,0.2439]
[1763255797092,0.8523641,3148.3,3148.2,0.2439]
[1763255797286,0.72734979,3148.4,3148.3,0.2439]
[1763255797491,3.2078,3148.5,3148.4,0.2439]
[1763255797689,4.17278846,3148.5,3148.0,0.138]
[1763255797895,0.72738846,3148.4,3148.0,0.138]
[1763255798394,0.72738846,3148.4,3148.3,0.2439]
[1763255799390,0.96498846,3148.4,3148.0,0.138]
[1763255800693,0.96498846,3148.4,3148.3,0.2439]
[1763255801596,0.72738846,3148.4,3148.3,0.2439]
[1763255801998,0.8523641,3148.7,3148.6,0.2439]
[1763255802196,0.2376,3148.6,3148.0,0.138]
[1763255802395,0.72905108,3148.5,3148.0,0.138]
[1763255802596,0.8523641,3148.7,3148.5,0.3819]
[1763255802796,0.7291781,3148.6,3148.5,0.3819]
[1763255803198,0.7291781,3148.8,3148.5,0.3819]
[1763255803400,0.7291781,3148.7,3148.5,0.3819]
[1763255803699,0.7291781,3148.6,3148.5,0.3819]
[1763255803901,0.8523641,3148.8,3148.6,0.2439]
[1763255804090,4.0601641,3148.9,3148.8,0.2439]
[1763255804298,0.72943378,3148.9,3148.8,0.2439]
[1763255804986,0.72943378,3149.0,3148.8,0.2439]
[1763255805193,0.00324673,3149.1,3148.9,0.2439]
[1763255805400,0.00324673,3149.1,3149.0,0.3819]
[1763255805700,0.73308666,3149.1,3149.0,0.3819]
[1763255807601,0.00324673,3149.1,3149.0,0.3819]
[1763255809607,0.21681134,3149.1,3148.7,3.2078]
[1763255810205,0.21681134,3149.1,3149.0,0.3819]
[1763255810597,0.2204609,3149.1,3149.0,0.3819]
[1763255811602,0.2204609,3149.1,3148.7,3.2078]
[1763255811897,0.00364956,3149.1,3149.0,0.3819]
[1763255813502,3.2078,3149.7,3149.6,0.2439]
[1763255813700,4.17076669,3149.7,3149.6,0.2439]
[1763255813897,4.0601641,3150.1,3149.6,0.2439]
[1763255814100,0.72534161,3150.0,3149.9,0.2439]
[1763255814503,0.72786596,3150.0,3149.9,0.24634112]
[1763255815304,0.00252435,3150.0,3149.9,0.24634112]
[1763255817211,0.24012435,3150.0,3149.9,0.00244112]
[1763255819307,0.35312435,3150.0,3149.9,0.00244112]
[1763255819511,0.24012435,3150.0,3149.9,0.00244112]
[1763255820411,0.2389,3149.4,3149.3,3.2078]
[1763255821307,0.2389,3149.4,3149.3,3.4362]
[1763255821517,0.83978991,3150.0,3149.3,3.43966199]
[1763255821831,0.2389,3149.4,3149.3,3.43966199]
[1763255822109,0.2389,3149.4,3149.3,3.21126199]
[1763255822703,0.2389,3149.4,3149.3,3.43966199]
[1763255822900,0.83978991,3150.0,3149.3,3.43966199]
[1763255823212,0.72678991,3150.0,3149.3,3.43966199]
[1763255823408,0.00252435,3150.0,3149.3,3.43966199]
[1763255823617,0.2389,3149.4,3149.3,3.43966199]
[1763255823905,0.2146,3149.4,3149.3,3.21126199]
[1763255824212,0.83978615,3150.0,3149.3,3.43966199]
[1763255824410,0.72678615,3150.0,3149.3,3.43966199]
[1763255825113,0.2146,3149.4,3149.3,3.43966199]
[1763255825513,0.72678615,3150.0,3149.3,3.43966199]
[1763255825714,0.72678615,3150.0,3149.5,0.1452]
[1763255826012,0.00252435,3150.0,3149.9,0.2284]
[1763255826211,0.21712435,3150.0,3149.5,0.1452]
[1763255826406,0.94236685,3150.0,3149.5,0.1452]
[1763255827314,0.2146,3149.4,3149.3,3.21126199]
[1763255827509,3.2078,3149.7,3149.5,0.1452]
[1763255827710,3.2078,3149.7,3149.6,0.2284]
[1763255828109,3.4224,3149.7,3149.6,0.2284]
[1763255828312,3.4224,3149.7,3149.5,0.1452]
[1763255828610,3.2078,3149.7,3149.6,0.2284]
[1763255830012,0.2146,3149.6,3149.5,0.1452]
[1763255831116,3.2078,3149.7,3149.5,0.3736]
[1763255831311,3.2078,3149.7,3149.6,0.2284]
[1763255832311,4.14499676,3149.7,3149.6,0.2284]
[1763255833214,0.93719676,3149.7,3149.6,0.2284]
[1763255833414,0.2146,3149.7,3149.6,0.2284]
[1763255833716,1.57753345,3150.0,3149.6,0.2284]
[1763255835217,0.72337998,3149.9,3149.8,0.2319]
[1763255835518,0.72348514,3149.9,3149.5,0.1452]
[1763255835817,0.72348514,3149.8,3149.5,0.1452]
[1763255836010,0.00252435,3150.0,3149.5,0.1452]
[1763255836212,0.72600941,3150.0,3149.5,0.1452]
[1763255836518,1.58194159,3150.0,3149.9,0.2319]
[1763255837416,1.58247051,3150.0,3149.9,0.2319]
[1763255837620,1.58247051,3150.0,3149.5,0.1452]
[1763255838619,1.58247051,3150.0,3149.9,0.2319]
[1763255838812,0.7261947,3150.0,3149.9,0.2319]
[1763255840613,0.00252435,3150.0,3149.9,0.2319]
[1763255842926,0.72367035,3150.1,3150.0,0.3685]
[1763255843126,0.00476507,3150.3,3150.2,0.2319]
[1763255843328,0.72337558,3150.5,3150.4,0.2319]
[1763255843823,0.34222725,3150.5,3150.4,0.2319]
[1763255844027,0.34617686,3150.5,3150.4,0.2319]
[1763255844220,0.00394961,3150.5,3150.4,0.2319]
[1763255845128,0.00394961,3150.5,3150.4,1.37040141]
[1763255845324,0.00394961,3150.5,3150.4,0.2319]
[1763255847125,0.00476507,3150.8,3150.7,0.2319]
[1763255847716,0.01206507,3150.8,3150.5,0.1366]
[1763255848123,0.0073,3150.6,3150.5,0.1366]
[1763255848322,0.0067,3150.3,3150.2,3.2078]
[1763255851025,0.0067,3150.3,3150.1,0.00476507]
[1763255851225,0.0067,3150.2,3150.1,0.00476507]
[1763255851434,0.0019,3149.4,3149.3,0.00346199]
[1763255851926,0.0019,3149.4,3149.3,0.23136199]
[1763255852129,3.2078,3149.7,3149.3,0.23136199]
[1763255852635,0.0019,3149.4,3149.3,0.00346199]
[1763255852832,3.2078,3149.7,3149.5,0.144]
[1763255853027,3.2078,3149.7,3149.6,0.2279]
[1763255853234,0.0019,3149.6,3149.5,0.144]
[1763255853726,3.2078,3149.7,3149.5,0.3719]
[1763255854031,0.0019,3149.6,3149.5,0.3719]
[1763255854731,3.2078,3149.7,3149.6,0.2279]
[1763255854921,4.06407581,3150.1,3150.0,0.3719]
[1763255855122,3.2078,3150.1,3150.0,0.3719]
[1763255855833,3.2097,3150.1,3150.0,0.144]
[1763255856225,3.2097,3150.1,3149.5,0.144]
[1763255856626,3.2097,3150.1,3150.0,0.144]
[1763255857227,3.2097,3150.1,3150.0,0.3719]
[1763255857636,3.2097,3150.1,3150.0,0.144]
[1763255858128,3.2097,3150.1,3150.0,0.3719]
[1763255858335,3.2078,3150.1,3150.0,0.3719]
[1763255858631,3.2097,3150.1,3150.0,0.144]
[1763255861233,3.2078,3150.1,3150.0,0.3719]
[1763255861434,3.2097,3150.1,3150.0,0.144]
[1763255861730,0.0019,3149.6,3149.5,0.144]
[1763255861929,3.2078,3150.1,3150.0,0.144]
[1763255863635,3.2078,3150.1,3149.5,0.144]
[1763255864731,4.06407581,3150.1,3149.5,0.144]
[1763255864926,0.85627581,3150.0,3149.5,0.144]
[1763255865928,4.06407581,3150.1,3149.5,0.144]
[1763255867440,4.06407581,3150.1,3150.0,0.144]
[1763255867736,4.06407581,3150.1,3149.5,0.144]
[1763255868137,3.2078,3150.1,3150.0,0.144]
[1763255868939,4.06407581,3150.1,3149.5,0.144]
[1763255870638,4.06407581,3150.1,3150.0,0.3719]
[1763255871237,4.06407581,3150.1,3149.5,0.144]
[1763255872042,4.06407581,3150.1,3150.0,0.144]
[1763255872344,3.2078,3150.1,3150.0,0.3719]
[1763255873244,4.06407581,3150.1,3149.5,0.144]
[1763255873437,4.06407581,3150.1,3150.0,0.3719]
[1763255873839,3.2078,3150.1,3150.0,0.3719]
[1763255876349,3.2078,3150.1,3150.0,0.144]
[1763255877144,3.2078,3150.1,3149.5,0.144]
[1763255877444,4.06407581,3150.1,3149.5,0.144]
[1763255877635,3.2078,3149.7,3149.5,0.144]
[1763255877835,2.82655657,3149.7,3149.5,0.144]
[1763255878532,2.82655657,3149.7,3149.6,0.2279]
[1763255880737,4.06617581,3150.1,3150.0,0.1405]
[1763255881238,0.0021,3149.7,3149.6,1.13850141]
[1763255881851,0.85694325,3150.0,3149.6,1.36880141]
[1763255882145,0.0021,3149.7,3149.6,1.36880141]
[1763255882344,0.85694325,3150.0,3149.9,0.2303]
[1763255882547,0.09994325,3150.3,3150.2,0.2303]
[1763255882742,1.13726561,3151.2,3150.7,0.2303]
[1763255882947,1.13726561,3151.3,3150.7,4.57721556]
[1763255883147,0.25331715,3150.8,3150.7,3.4381]
[1763255883333,0.25331715,3150.8,3150.7,3.2078]
[1763255883538,0.2463,3150.6,3150.5,0.3708]
[1763255883842,0.25331715,3150.8,3150.7,0.2303]
[1763255886834,0.25331715,3150.8,3150.5,0.1405]
[1763255887039,0.25331715,3150.8,3150.5,0.2303]
[1763255887040,0.2463,3150.6,3150.5,0.2303]
[1763255887235,0.2463,3150.3,3150.2,4.57721556]
[1763255887435,0.2463,3149.7,3149.6,0.68952698]
[1763255887636,0.2463,3149.4,3149.3,0.00346199]
[1763255888844,0.2463,3149.4,3149.0,3.2078]
[1763255888845,3.4541,3149.4,3149.0,3.2078]
[1763255889048,0.1499,3149.0,3148.6,3.2078]
[1763255889244,0.2463,3148.7,3148.6,3.2078]
[1763255889445,0.2463,3148.7,3148.0,1.84917334]
[1763255889446,0.2463,3148.7,3148.2,3.2078]
[1763255889644,0.2463,3148.3,3148.2,3.2078]
[1763255890045,0.24887456,3148.3,3148.2,3.21116567]
[1763255896756,0.24887456,3148.3,3148.2,0.00336567]
[1763255899358,0.00257456,3148.3,3148.2,0.23366567]
[1763255899859,0.25357456,3148.3,3148.2,0.00336567]
[1763255900057,0.00257456,3148.3,3148.2,0.23226567]
[1763255900455,0.00257456,3148.3,3148.2,3.44006567]
[1763255900660,3.2078,3149.0,3148.9,0.2289]
[1763255900961,0.00476507,3149.1,3148.5,0.1388]
[1763255900962,0.00476507,3149.1,3149.0,0.3677]
[1763255901557,0.00775063,3149.1,3149.0,0.3677]
[1763255904449,3.2078,3149.9,3149.8,0.2289]